Cogmind - Beta 10.2 @@@ ROGUE MODE // 2021.01.05 @ 20:53:05 Player: Rushional Result: Destroyed by G-67 Veteran with Plasma Rifle Performance ------------- Evolutions (7) 3500 Regions Visited (16) 3200 Robots Destroyed (88) 440 Value Destroyed (2684) 2684 Prototype IDs (9) 180 Alien Tech Used (1) 200 Bonus (3189) 3189 TOTAL SCORE: 13393 Bonus ------- Triggered Max Security 1000 High Alert Combat Kills 86 Follower Combat Kills 118 Aligned with FarCom 300 Met Sigix 2000 Friendly Fire -315 Cogmind --------- Core Integrity 0/1300 Matter 206/300 Energy 91/100 System Corruption 2% Temperature Cool (0) Movement Core (50) Location -3/Quarantine Parts ------- > --- POWER (4) -------- (None) > --- PROPULSION (5) --- (None) > --- UTILITY (9) ------ (None) > --- WEAPON (3) ------- (None) > --- INVENTORY (4) ---- Neutrino Core Improved Medium Treads Improved Cooling System Nova Cannon Peak State ------------ > --- POWER ------------ Heavy Deuterium Engine Neutrino Core > --- PROPULSION ------- Improved Hover Unit Gravmag System Antigrav System Antigrav System > --- UTILITY ---------- Fusion Compressor Advanced Heat Sink Medium Storage Unit Hacking Suite Advanced Hacking Suite > --- WEAPON ----------- Tesla Rifle Smartbomb Launcher > --- INVENTORY -------- Heavy Deuterium Engine Improved Heat Shielding Improved Cooling System Point Defense System Heavy Ion Cannon Gauss Cannon Heavy Missile Launcher [Rating: 70] Favorites ----------- Power Heavy Deuterium Engine Engine Heavy Deuterium Engine Power Core Neutrino Core Reactor Light Antimatter Reactor Propulsion Gravmag System Treads Light Treads Wheel Wheel Hover Unit Gravmag System Utility Medium Storage Unit Device Improved Heat Sink Storage Medium Storage Unit Hackware Hacking Suite Protection Hardened Light Armor Plating Weapon Grenade Launcher Energy Gun Gatling Laser Energy Cannon Heavy Particle Cannon Ballistic Gun Shotgun Ballistic Cannon Gauss Cannon Launcher Grenade Launcher Build | -11 -10 -10 -10 -9 -8 -7 -7 -7 -5 -5 -5 -4 -4 -4 -3 -3 ------- Run | Scr Mat Min Exi Min Mat Fac Sto Rec Fac Was Fac Fac Upp Upp Res Qua Slots Evolved 14 | . . . . . 4 2 . . 4 . . 2 . . 2 . Power 3 | . . . . . . 1 . . 1 . . . . . 1 . Propulsion 3 | . . . . . 1 . . . 1 . . 1 . . . . Utility 7 | . . . . . 3 1 . . 1 . . 1 . . 1 . Weapon 1 | . . . . . . . . . 1 . . . . . . . Parts Attached 137 | 8 10 2 3 . 21 30 5 3 20 . 13 2 7 1 7 5 Power 20 | 1 1 . . . 4 7 . . 2 . 2 1 2 . . . Engine 14 | 1 1 . . . 4 6 . . 1 . 1 . . . . . Core 4 | . . . . . . 1 . . 1 . 1 . 1 . . . Reactor 2 | . . . . . . . . . . . . 1 1 . . . Propulsion 30 | 2 1 1 . . 4 7 3 . 5 . 5 . 2 . . . Treads 3 | . . . . . . 1 . . . . . . 2 . . . Leg . | . . . . . . . . . . . . . . . . . Wheel 5 | 2 1 1 . . 1 . . . . . . . . . . . Hover 22 | . . . . . 3 6 3 . 5 . 5 . . . . . Flight . | . . . . . . . . . . . . . . . . . Utility 45 | 3 4 . 3 . 7 7 1 2 8 . 2 1 . 1 4 2 Device 35 | 2 . . 2 . 6 7 . 2 8 . 1 1 . 1 4 1 Storage 4 | 1 1 . 1 . . . . . . . . . . . . 1 Processor . | . . . . . . . . . . . . . . . . . Hackware 2 | . 1 . . . . . . . . . 1 . . . . . Protection 4 | . 2 . . . 1 . 1 . . . . . . . . . Artifact . | . . . . . . . . . . . . . . . . . Weapon 42 | 2 4 1 . . 6 9 1 1 5 . 4 . 3 . 3 3 Energy Gun 11 | 1 1 . . . 2 3 . . 1 . 1 . . . 1 1 Energy Cannon 11 | . . . . . 2 2 1 . 2 . . . . . 2 2 Ballistic Gun 2 | 1 1 . . . . . . . . . . . . . . . Ballistic Cannon 5 | . . . . . . 3 . . . . . . 2 . . . Launcher 13 | . 2 1 . . 2 1 . 1 2 . 3 . 1 . . . Special Weapon . | . . . . . . . . . . . . . . . . . Impact Weapon . | . . . . . . . . . . . . . . . . . Slashing Weapon . | . . . . . . . . . . . . . . . . . Piercing Weapon . | . . . . . . . . . . . . . . . . . Special Melee Weapon . | . . . . . . . . . . . . . . . . . Unidentified Prototypes 10 | . . . 3 . 2 1 . . . . . . 1 . 1 2 Parts Lost 36 | . . 1 . . . 12 2 . 5 . 5 . 9 . 1 1 Power 2 | . . . . . . 2 . . . . . . . . . . Propulsion 15 | . . . . . . 4 1 . 1 . 4 . 4 . 1 . Utility 8 | . . . . . . 2 . . 2 . 1 . 2 . . 1 Weapon 11 | . . 1 . . . 4 1 . 2 . . . 3 . . . Highest Loss Streak 5 | . . 1 . . . 4 1 . 5 . 2 . 5 . 1 1 Average Slot Usage (%) 79 | . 100 100 99 100 98 96 95 100 80 76 73 68 31 2 6 5 Engine 9 | . 14 14 14 14 9 13 15 15 3 . 3 5 4 . . . Wheel 6 | . 28 28 28 28 10 . . . . . . . . . . . Hover 13 | . . . . . 16 21 21 23 22 23 21 21 4 . . . Device 16 | . . . . . 22 27 23 28 26 29 17 10 8 2 6 3 Storage 7 | . 14 14 13 14 9 7 7 7 5 5 5 5 4 . . . Hackware 6 | . 3 14 14 14 9 7 7 7 5 5 10 10 . . . . Protection 1 | . 10 . . . 3 . 4 1 . . . . . . . . Energy Gun 2 | . 7 . . . . 2 7 7 4 . . 5 . . . . Energy Cannon 2 | . . . . . 8 . 2 5 1 5 4 . . . . 1 Ballistic Gun 2 | . 14 14 14 14 . . . . . . . . . . . . Ballistic Cannon 1 | . . . . . . 5 4 . . . . . . . . . Launcher 5 | . 6 14 14 14 8 4 . 1 3 . . 5 3 . . . Naked Turns 140 | . . . . . . . . . . . . . 105 16 . 19 Heaviest Build 53 | 13 24 19 19 19 34 51 48 48 53 39 53 51 47 2 3 15 Greatest Support 58 | 20 20 20 20 20 33 39 39 39 50 44 51 51 58 3 3 3 Greatest Overweight (x) 14 | . 1 . . . 3 1 1 1 1 . 1 . 14 . . 4 Average Overweight (x) . | . . . . . . . 1 1 . . . . 1 . . . Largest Inventory Capacity 8 | 6 8 8 8 8 8 8 8 8 8 8 8 8 8 4 4 4 Average Capacity 7 | 5 7 8 7 8 8 8 8 8 8 8 8 8 7 4 4 4 Most Carried 8 | 6 8 8 8 8 8 8 8 8 8 8 8 8 8 4 4 4 Average Carried 6 | 3 6 7 7 8 7 7 7 7 7 8 7 8 5 4 3 3 Final Capacity 8 | 6 8 8 8 8 8 8 8 8 8 8 8 8 4 4 4 4 Final Carried 8 | 5 8 8 8 8 8 6 8 8 8 8 8 8 4 4 4 4 Class Distribution -------------------- 53% | Mutant 17% | Scavenger-Mutant 11% | Commander-Mutant 7% | Hacker-Mutant 5% | Scout 3% | Scavenger-Scout Dominant Class ---------------- Mutant | -10/Materials Mutant | -10/Mines Mutant | -10/Exiles Mutant | -9/Mines Scout | -8/Materials Mutant | -7/Factory Scavenger-Mutant | -7/Storage Scavenger-Mutant | -7/Recycling Commander-Mutant | -5/Factory Mutant | -5/Waste Hacker-Mutant | -5/Factory Hacker-Mutant | -4/Factory Mutant | -4/Upper Caves Mutant | -4/Upper Caves Mutant | -3/Research Mutant | -3/Quarantine Resources | -11 -10 -10 -10 -9 -8 -7 -7 -7 -5 -5 -5 -4 -4 -4 -3 -3 ----------- Run | Scr Mat Min Exi Min Mat Fac Sto Rec Fac Was Fac Fac Upp Upp Res Qua Matter Collected 2448 | 304 182 101 . 39 519 630 . 73 182 . 95 . 313 10 . . Remotely . | . . . . . . . . . . . . . . . . . Salvage Created 2408 | 184 188 97 . . 715 757 . 188 137 . . . 142 . . . Parts 164 | 15 16 5 . . 54 35 . 25 6 . . . 8 . . . Haulers Intercepted 6 | . . . . . 5 1 . . . . . . . . . . Recyclers Shooed 3 | 1 . . . . 2 . . . . . . . . . . . Parts Field Recycled 5 | . . . . . . 5 . . . . . . . . . . Retrieved Matter 60 | . . . . . . 60 . . . . . . . . . . Parts Self-Destructed 3 | . . . . . . . . . . . . . 2 1 . . Prevented 5 | . . . . . . . . . . . . . . 5 . . Kills | -11 -10 -10 -10 -9 -8 -7 -7 -7 -5 -5 -5 -4 -4 -4 -3 -3 ------- Run | Scr Mat Min Exi Min Mat Fac Sto Rec Fac Was Fac Fac Upp Upp Res Qua Combat Hostiles Destroyed 57 | . 7 3 . . 13 17 . 8 2 . . . 7 . . . Guns 18 | . 5 2 . . . 4 . 7 . . . . . . . . Cannons 16 | . . . . . 4 9 . 1 1 . . . 1 . . . AOE 23 | . 2 1 . . 9 4 . . 1 . . . 6 . . . Classes Destroyed 13 | 3 4 . . . 3 2 . 1 . . . . . . . . Worker 4 | 2 . 1 . . 1 . . . . . . . . . . . Builder 4 | . . . . . 1 . . 3 . . . . . . . . Tunneler 4 | 4 . . . . . . . . . . . . . . . . Hauler 6 | . . . . . 5 1 . . . . . . . . . . Recycler 3 | 1 . . . . . 1 . 1 . . . . . . . . Operator 2 | . 1 . . . . 1 . . . . . . . . . . Drone 8 | . . . . . . . . 8 . . . . . . . . Watcher 7 | . 1 . . . 4 1 . . 1 . . . . . . . Swarmer 11 | . 3 . . . 3 3 . . . . . . 2 . . . Grunt 27 | . 4 3 . . 7 8 . . 1 . . . 4 . . . Duelist 1 | . . . . . . 1 . . . . . . . . . . Sentry 7 | . . . . . 3 3 . . . . . . 1 . . . Programmer 4 | . . . . . . 2 . . 2 . . . . . . . Best Kill Streak 9 | 2 3 2 . . 9 5 . 4 1 . . . 6 . . . Combat Bots Only 8 | . 3 2 . . 8 5 . 2 1 . . . 6 . . . Max Kills in Single Turn 4 | 1 2 1 . . 4 2 . 2 2 . . . 2 . . . Gunslinging . | . . . . . . . . . . . . . . . . . Exploded 3 | . 1 1 . . 3 1 . . 1 . . . 2 . . . Melee . | . . . . . . . . . . . . . . . . . Uniques/NPCs Destroyed . | . . . . . . . . . . . . . . . . . Combat | -11 -10 -10 -10 -9 -8 -7 -7 -7 -5 -5 -5 -4 -4 -4 -3 -3 -------- Run | Scr Mat Min Exi Min Mat Fac Sto Rec Fac Was Fac Fac Upp Upp Res Qua Damage Taken 5502 | . 289 74 . . 351 1414 222 . 303 . 385 . 1158 . . 1306 Core 2262 | . 29 . . . 30 341 7 . . . 80 . 529 . . 1246 Absorbed by Shields . | . . . . . . . . . . . . . . . . . Core Remaining (%) 79 | 100 . . . 88 94 . . 50 . . 92 . . 54 . . Volleys Fired 286 | 24 22 16 . . 63 89 5 23 14 . 7 . 13 . . 10 Largest 2 | 2 2 2 . . 2 2 2 2 2 . 1 . 2 . . 1 Hottest 155 | 70 73 53 . . 105 123 155 155 145 . 65 . 104 . . 113 Shots Fired 424 | 48 40 18 . . 87 126 9 46 18 . 8 . 14 . . 10 Gun 171 | 48 33 15 . . 2 40 5 23 4 . . . 1 . . . Cannon 193 | . . . . . 57 77 4 23 13 . 7 . 2 . . 10 Launcher 60 | . 7 3 . . 28 9 . . 1 . 1 . 11 . . . Special . | . . . . . . . . . . . . . . . . . Kinetic 111 | 24 22 15 . . 2 43 3 . . . . . 2 . . . Thermal 252 | 24 11 . . . 57 74 6 46 17 . 7 . . . . 10 Explosive 60 | . 7 3 . . 28 9 . . 1 . 1 . 11 . . . Electromagnetic 1 | . . . . . . . . . . . . . 1 . . . Robot Hit Streak 11 | 4 10 6 . . 9 11 5 3 5 . 2 . 9 . . . Robot Miss Streak 8 | 3 3 5 . . 6 7 2 8 6 . 3 . 1 . . . Penetration Max . | . . . . . . . . . . . . . . . . . Secondary Targets . | . . . . . . . . . . . . . . . . . Shots Hit Robots 229 | 26 24 11 . . 42 72 6 22 10 . 3 . 13 . . . Core Hits 159 | 9 17 8 . . 47 37 1 14 7 . 1 . 15 . . 3 Critical Hits 8 | . . . . . . 8 . . . . . . . . . . Critical Kills 4 | . . . . . . 4 . . . . . . . . . . Critical Parts Destroyed 4 | . . . . . . 4 . . . . . . . . . . Melee Attacks . | . . . . . . . . . . . . . . . . . Impact . | . . . . . . . . . . . . . . . . . Slashing . | . . . . . . . . . . . . . . . . . Piercing . | . . . . . . . . . . . . . . . . . Sneak Attacks . | . . . . . . . . . . . . . . . . . Combat Hostiles . | . . . . . . . . . . . . . . . . . Follow-up Attacks . | . . . . . . . . . . . . . . . . . Damage Inflicted 7937 | 283 578 287 . . 2064 2274 55 404 668 . 80 . 1225 . . 19 Guns 1648 | 283 324 197 . . 12 480 55 254 22 . . . 21 . . . Cannons 2635 | . . . . . 850 1231 . 150 281 . 80 . 43 . . . Explosions 3635 | . 254 90 . . 1202 563 . . 365 . . . 1161 . . . Melee . | . . . . . . . . . . . . . . . . . Ramming 19 | . . . . . . . . . . . . . . . . 19 Kinetic 1277 | 93 275 197 . . 12 657 . . . . . . 43 . . . Thermal 3543 | 190 49 . . . 1003 1191 55 404 571 . 80 . . . . . Explosive 3077 | . 254 90 . . 1049 426 . . 97 . . . 1161 . . . Electromagnetic 21 | . . . . . . . . . . . . . 21 . . . Impact . | . . . . . . . . . . . . . . . . . Slashing . | . . . . . . . . . . . . . . . . . Piercing . | . . . . . . . . . . . . . . . . . Highest Corruption 8 | . . . . . 2 . . . . 8 8 . . . . 2 Average Corruption 7 | . . . . . 1 . . . . 8 8 . . . . 2 Corruption Purged . | . . . . . . . . . . . . . . . . . Effects 24 | . . . . . . . . . . 2 21 . . . . 1 Message Errors 3 | . . . . . . . . . . . 3 . . . . . Matter Fused 4 | . . . . . . . . . . . 4 . . . . . Heat Flow Errors 6 | . . . . . . . . . . . 5 . . . . 1 Energy Discharges 5 | . . . . . . . . . . 2 3 . . . . . Data Loss (minor) 5 | . . . . . . . . . . . 5 . . . . . Misfires 1 | . . . . . . . . . . . 1 . . . . . Overload Shots . | . . . . . . . . . . . . . . . . . Overflow Damage 391 | . 13 . . . 29 124 . . 201 . 4 . 20 . . . Projectiles 106 | . . . . . 5 55 . . 42 . 4 . . . . . Explosions 285 | . 13 . . . 24 69 . . 159 . . . 20 . . . Melee . | . . . . . . . . . . . . . . . . . Knockbacks 5 | . . . . . . 5 . . . . . . . . . . Impact . | . . . . . . . . . . . . . . . . . Kinetic 5 | . . . . . . 5 . . . . . . . . . . Secondary . | . . . . . . . . . . . . . . . . . Self-Inflicted Damage 465 | . 33 27 . . 41 28 . . 206 . . . 123 . . 7 Shots 18 | . 3 2 . . 2 1 . . 3 . . . 7 . . . Rammed 11 | . . . . . . . . . . . . . . . . 11 Targets Rammed 11 | . . . . . . . . . . . . . . . . 11 Kicked . | . . . . . . . . . . . . . . . . . Crushed . | . . . . . . . . . . . . . . . . . Highest Temperature 456 | 70 108 12 . . 156 154 36 99 19 . 238 . 456 . . 32 Average Temperature 43 | 27 32 7 . . 33 51 21 21 10 . 108 . 230 . . 32 Received Heat Transfer 1359 | . 69 27 . . 180 567 60 . . . 90 . 234 . . 132 Siege Activations . | . . . . . . . . . . . . . . . . . Robots Corrupted . | . . . . . . . . . . . . . . . . . Combat Hostiles . | . . . . . . . . . . . . . . . . . Parts Fried . | . . . . . . . . . . . . . . . . . Impact Corruptions . | . . . . . . . . . . . . . . . . . Robots Melted . | . . . . . . . . . . . . . . . . . Combat Hostiles . | . . . . . . . . . . . . . . . . . Parts Melted 2 | . . . . . . . . . 2 . . . . . . . Heat Transferred 5392 | 555 148 . . . 1358 1765 125 797 533 . 111 . . . . . Parts Sabotaged 1 | . . . . . . . . . . . . . . . . 1 Parts Stolen . | . . . . . . . . . . . . . . . . . Parts Stripped . | . . . . . . . . . . . . . . . . . Power Chain Reactions . | . . . . . . . . . . . . . . . . . Missiles Intercepted . | . . . . . . . . . . . . . . . . . Alert | -11 -10 -10 -10 -9 -8 -7 -7 -7 -5 -5 -5 -4 -4 -4 -3 -3 ------- Run | Scr Mat Min Exi Min Mat Fac Sto Rec Fac Was Fac Fac Upp Upp Res Qua Peak Influence 1630 | 35 202 158 . 100 435 426 241 245 985 246 238 93 . . 58 1630 Initial 932 | . 22 63 . . 39 197 175 90 932 216 144 93 . . 48 17 Average 276 | 13 117 106 . 96 157 210 217 132 818 222 165 93 . . 38 1607 Maximum Alert Level 5 | . 1 . . . 2 2 1 1 3 1 1 . . . . 5 Low Security (%) 63 | 100 87 100 . 100 71 54 12 88 . . 75 100 . . 100 . Level 1 19 | . 12 . . . 23 45 87 11 . 100 24 . . . . . Level 2 2 | . . . . . 4 . . . 11 . . . . . . . Level 3 12 | . . . . . . . . . 88 . . . . . . . Level 4 . | . . . . . . . . . . . . . . . . . Level 5 . | . . . . . . . . . . . . . . . . . High Security . | . . . . . . . . . . . . . . . . . Max Security 2 | . . . . . . . . . . . . . . . . 99 Squads Dispatched 30 | . 1 . . . 3 8 1 . 2 . 2 . . . . 13 Investigation 1 | . . . . . 1 . . . . . . . . . . . Extermination 3 | . . . . . . 2 . . 1 . . . . . . . Reinforcement 8 | . 1 . . . 2 1 1 . 1 . 2 . . . . . Assault 13 | . . . . . . . . . . . . . . . . 13 Garrison 5 | . . . . . . 5 . . . . . . . . . . Intercept . | . . . . . . . . . . . . . . . . . Construction Impeded 1 | . . . . . 1 . . . . . . . . . . . Haulers Reinforced . | . . . . . . . . . . . . . . . . . Stealth | -11 -10 -10 -10 -9 -8 -7 -7 -7 -5 -5 -5 -4 -4 -4 -3 -3 --------- Run | Scr Mat Min Exi Min Mat Fac Sto Rec Fac Was Fac Fac Upp Upp Res Qua Distress Signals 3 | . 1 . . . 2 . . . . . . . . . . . Communications Jammed . | . . . . . . . . . . . . . . . . . Distress Signals . | . . . . . . . . . . . . . . . . . Times Spotted 185 | . 15 1 . 4 26 23 3 31 5 4 14 . 20 . . 39 Peak Tracking Total 32 | . 4 1 . 4 7 4 4 3 2 5 4 . 7 . . 32 Tactical Retreats 13 | . 2 . . . 2 . . . . . 5 . 4 . . . Traps | -11 -10 -10 -10 -9 -8 -7 -7 -7 -5 -5 -5 -4 -4 -4 -3 -3 ------- Run | Scr Mat Min Exi Min Mat Fac Sto Rec Fac Was Fac Fac Upp Upp Res Qua Traps Triggered 10 | . . . . . 3 1 1 . 3 . . . . . 1 1 Indirectly . | . . . . . . . . . . . . . . . . . Trap Hack Attempts . | . . . . . . . . . . . . . . . . . Triggered . | . . . . . . . . . . . . . . . . . Disarmed . | . . . . . . . . . . . . . . . . . Reprogrammed . | . . . . . . . . . . . . . . . . . Reused . | . . . . . . . . . . . . . . . . . Traps Extracted . | . . . . . . . . . . . . . . . . . Installed . | . . . . . . . . . . . . . . . . . Triggered 1 | . . . . . . . . . . . . . . 1 . . Machines | -11 -10 -10 -10 -9 -8 -7 -7 -7 -5 -5 -5 -4 -4 -4 -3 -3 ---------- Run | Scr Mat Min Exi Min Mat Fac Sto Rec Fac Was Fac Fac Upp Upp Res Qua Machines Disabled 30 | . 1 1 . . 7 10 2 1 5 . 1 . 1 . . 1 Max in Single Turn 4 | . 1 1 . . 1 3 1 1 4 . 1 . 1 . . 1 Machines Sabotaged . | . . . . . . . . . . . . . . . . . Garrisons Compromised . | . . . . . . . . . . . . . . . . . Overloaded Fab Kills . | . . . . . . . . . . . . . . . . . Fab Network Shutdowns . | . . . . . . . . . . . . . . . . . Hacking | -11 -10 -10 -10 -9 -8 -7 -7 -7 -5 -5 -5 -4 -4 -4 -3 -3 --------- Run | Scr Mat Min Exi Min Mat Fac Sto Rec Fac Was Fac Fac Upp Upp Res Qua Machines Accessed 38 | . 3 . 4 . 6 7 3 7 1 . 2 1 1 . 3 . Terminals 21 | . 2 . . . 3 5 2 5 1 . . . 1 . 2 . Fabricators 2 | . . . . . . . . . . . . 1 . . 1 . Repair Stations 3 | . . . . . 1 2 . . . . . . . . . . Recycling Units 7 | . 1 . . . 2 . 1 2 . . 1 . . . . . Scanalyzers 1 | . . . . . . . . . . . 1 . . . . . Garrison Access . | . . . . . . . . . . . . . . . . . Total Hacks 133 | . 5 . 49 . 20 15 8 17 2 . 4 4 4 . 5 . Successful 104 | . 3 . 49 . 15 8 5 11 2 . 2 1 4 . 4 . Failed 28 | . 2 . . . 5 6 3 6 . . 2 3 . . 1 . Catastrophic . | . . . . . . . . . . . . . . . . . Database Lockouts 1 | . . . . . . 1 . . . . . . . . . . Manual 36 | . 4 . 1 . 10 8 3 7 1 . . . . . 2 . Terminals 51 | . 3 . . . 9 11 6 14 2 . . . 4 . 2 . Fabricators 7 | . . . . . . . . . . . . 4 . . 3 . Repair Stations 11 | . . . . . 7 4 . . . . . . . . . . Recycling Units 12 | . 2 . . . 4 . 2 3 . . 1 . . . . . Scanalyzers 3 | . . . . . . . . . . . 3 . . . . . Garrison Access . | . . . . . . . . . . . . . . . . . Terminal Hacks 82 | . 1 . 49 . 6 6 3 9 2 . . . 4 . 2 . Record 71 | . 1 . 49 . 3 5 1 7 . . . . 4 . 1 . Robot Analysis 1 | . . . . . . . . 1 . . . . . . . . Open Door 1 | . . . . . . . . . . . . . . . 1 . Branch Access Points 1 | . . . . . . 1 . . . . . . . . . . Alert Level 5 | . . . . . 2 . 1 1 1 . . . . . . . Unreport Threat 2 | . . . . . 1 . . . 1 . . . . . . . Registered Components 1 | . . . . . . . 1 . . . . . . . . . Fabricator Hacks 3 | . . . . . . . . . . . . 1 . . 2 . Network Status 2 | . . . . . . . . . . . . 1 . . 1 . Build 1 | . . . . . . . . . . . . . . . 1 . Repair Station Hacks 8 | . . . . . 6 2 . . . . . . . . . . Scan Component 5 | . . . . . 3 2 . . . . . . . . . . Repair 3 | . . . . . 3 . . . . . . . . . . . Recycling Unit Hacks 10 | . 2 . . . 3 . 2 2 . . 1 . . . . . Report Inventory 6 | . 1 . . . 2 . 1 2 . . . . . . . . Retrieve Components 4 | . 1 . . . 1 . 1 . . . 1 . . . . . Scanalyzer 1 | . . . . . . . . . . . 1 . . . . . Insert Component 1 | . . . . . . . . . . . 1 . . . . . Garrison Access Hacks . | . . . . . . . . . . . . . . . . . Unauthorized Hacks . | . . . . . . . . . . . . . . . . . Terminals . | . . . . . . . . . . . . . . . . . Fabricators . | . . . . . . . . . . . . . . . . . Repair Stations . | . . . . . . . . . . . . . . . . . Recycling Units . | . . . . . . . . . . . . . . . . . Scanalyzers . | . . . . . . . . . . . . . . . . . Garrison Access . | . . . . . . . . . . . . . . . . . Data Cores Recovered . | . . . . . . . . . . . . . . . . . Used . | . . . . . . . . . . . . . . . . . Hacking Detections 31 | . 3 . . . 5 6 3 7 1 . 2 1 1 . 2 . Full Trace Events 1 | . . . . . . . . . . . . . 1 . . . Feedback Events . | . . . . . . . . . . . . . . . . . Feedback Blocked . | . . . . . . . . . . . . . . . . . Robot Schematics Acquired . | . . . . . . . . . . . . . . . . . Robots Built . | . . . . . . . . . . . . . . . . . Matter . | . . . . . . . . . . . . . . . . . Time . | . . . . . . . . . . . . . . . . . Total Robot Build Rating . | . . . . . . . . . . . . . . . . . Part Schematics Acquired . | . . . . . . . . . . . . . . . . . Parts Built 1 | . . . . . . . . . . . . . . . 1 . Matter 256 | . . . . . . . . . . . . . . . 256 . Time 128 | . . . . . . . . . . . . . . . 128 . Total Part Build Rating 8 | . . . . . . . . . . . . . . . 8 . Parts Repaired 3 | . . . . . 3 . . . . . . . . . . . Time 96 | . . . . . 96 . . . . . . . . . . . Parts Recycled . | . . . . . . . . . . . . . . . . . Recycled Matter . | . . . . . . . . . . . . . . . . . Retrieved Matter . | . . . . . . . . . . . . . . . . . Retrieved Components 7 | . 2 . . . 2 . 1 . . . 2 . . . . . Parts Scanalyzed . | . . . . . . . . . . . . . . . . . Part Schematics Acquired . | . . . . . . . . . . . . . . . . . Parts Damaged . | . . . . . . . . . . . . . . . . . Bothacking | -11 -10 -10 -10 -9 -8 -7 -7 -7 -5 -5 -5 -4 -4 -4 -3 -3 ------------ Run | Scr Mat Min Exi Min Mat Fac Sto Rec Fac Was Fac Fac Upp Upp Res Qua Used RIF Installer . | . . . . . . . . . . . . . . . . . Robots Hacked . | . . . . . . . . . . . . . . . . . Non-combat . | . . . . . . . . . . . . . . . . . Combat . | . . . . . . . . . . . . . . . . . Robot Hacks Applied . | . . . . . . . . . . . . . . . . . Relay Couplers Released . | . . . . . . . . . . . . . . . . . Robots Rewired 12 | . . . . . . . . 12 . . . . . . . . Allies Hacked 1 | . . . . . . . . . 1 . . . . . . . Hacks Repelled . | . . . . . . . . . . . . . . . . . Allies | -11 -10 -10 -10 -9 -8 -7 -7 -7 -5 -5 -5 -4 -4 -4 -3 -3 -------- Run | Scr Mat Min Exi Min Mat Fac Sto Rec Fac Was Fac Fac Upp Upp Res Qua Total Allies 15 | . . 2 . . . . . 12 . 1 . . . . . . Largest Group 12 | . . 2 2 2 2 . . 12 10 2 . . . . . . Highest-Rated Group 269 | . . 32 32 32 32 . . 269 240 61 . . . . . . Highest-Rated Ally 37 | . . 16 16 16 16 . . 37 37 31 . . . . . . Total Orders 20 | . . 5 . . . . . . 15 . . . . . . . STAY 2 | . . . . . . . . . 2 . . . . . . . ROAM 2 | . . 1 . . . . . . 1 . . . . . . . GUARD 12 | . . 4 . . . . . . 8 . . . . . . . AID 4 | . . . . . . . . . 4 . . . . . . . Ally Attacks 106 | . . . . 8 24 . . 49 9 16 . . . . . . Total Damage 1223 | . . . . 79 232 . . 454 309 149 . . . . . . Kills 19 | . . . . 4 2 . . 10 3 . . . . . . . Allies Corrupted . | . . . . . . . . . . . . . . . . . Allies Melted . | . . . . . . . . . . . . . . . . . Intel | -11 -10 -10 -10 -9 -8 -7 -7 -7 -5 -5 -5 -4 -4 -4 -3 -3 ------- Run | Scr Mat Min Exi Min Mat Fac Sto Rec Fac Was Fac Fac Upp Upp Res Qua Robot Analysis Total 1 | . . . . . . . . 1 . . . . . . . . Derelict Logs Recovered 3 | . . 1 . . . . . . . . . . 2 . . . Drone Launches . | . . . . . . . . . . . . . . . . . Drone Recoveries . | . . . . . . . . . . . . . . . . . Exploration | -11 -10 -10 -10 -9 -8 -7 -7 -7 -5 -5 -5 -4 -4 -4 -3 -3 ------------- Run | Scr Mat Min Exi Min Mat Fac Sto Rec Fac Was Fac Fac Upp Upp Res Qua Turns Passed 9630 | 186 577 497 736 136 1089 1727 187 829 1103 47 620 154 894 20 623 205 Spaces Moved 7232 | 128 494 426 622 78 762 900 135 526 784 96 694 296 498 36 551 206 Core 1009 | 8 . . . . . . . . . . . . 208 36 551 206 Treads 27 | . . . . . . . . . . . . . 27 . . . Legs . | . . . . . . . . . . . . . . . . . Wheels 2003 | 120 494 426 622 78 263 . . . . . . . . . . . Hover 4193 | . . . . . 499 900 135 526 784 96 694 296 263 . . . Flight . | . . . . . . . . . . . . . . . . . Fastest Speed 48 | 50 80 80 80 80 52 52 112 112 48 48 48 48 48 50 50 50 Average Speed 77 | 78 83 80 80 80 64 71 112 112 53 48 69 48 169 50 50 52 Slowest Speed 750 | 80 90 80 80 80 250 136 116 112 108 48 116 48 750 50 50 250 Overloaded Moves . | . . . . . . . . . . . . . . . . . Propulsion Burnouts . | . . . . . . . . . . . . . . . . . Robots Hopped . | . . . . . . . . . . . . . . . . . Cave-ins Triggered . | . . . . . . . . . . . . . . . . . Teleports 1 | . . . . . . . . . . . . . . . . 1 Time Travels 1 | . . . 1 . . . . . . . . . . . . . Exploration Rate (%) 38 | 5 57 76 94 13 48 22 24 95 8 65 11 9 74 8 13 29 Regions Visited 16 Branch Regions 8 Pre-discovered Areas 1 | . . . 1 . . . . . . . . . . . . . Known Exits Taken 3 | . . . . . . 1 . . . . . . 1 . 1 . Unknown Exits Taken 11 | 1 1 1 1 1 1 . 1 1 . . 1 1 . 1 . . Scrap Searched 4 | . . 1 . . . . . . . . . . 2 1 . . Spaces Dug 29 | . . . . . 11 . . . . . 18 . . . . . Terrain Destroyed 482 | . 34 22 . . 222 56 2 12 37 . 52 . 45 . . . Melee . | . . . . . . . . . . . . . . . . . Projectile 49 | . . . . . 20 11 2 12 1 . 2 . 1 . . . AOE 433 | . 34 22 . . 202 45 . . 36 . 50 . 44 . . . Terrain Rammed . | . . . . . . . . . . . . . . . . . Walls Destroyed . | . . . . . . . . . . . . . . . . . Machines Disabled . | . . . . . . . . . . . . . . . . . Actions | -11 -10 -10 -10 -9 -8 -7 -7 -7 -5 -5 -5 -4 -4 -4 -3 -3 --------- Run | Scr Mat Min Exi Min Mat Fac Sto Rec Fac Was Fac Fac Upp Upp Res Qua Total 10802 | 168 621 563 860 151 1273 1858 159 715 1449 96 822 308 534 36 897 292 Wait 2902 | . 70 117 229 74 390 812 8 103 608 1 95 4 4 . 332 55 Move 7217 | 127 493 425 621 77 761 899 134 525 784 95 693 295 497 35 550 206 Hop . | . . . . . . . . . . . . . . . . . Pick Up 63 | 6 9 2 4 . 14 8 4 . 8 . 4 2 1 . 1 . Fast Attach 78 | 8 5 . 3 . 10 14 2 3 11 . 6 2 2 1 7 4 Attach 41 | . 1 1 . . 6 11 1 . 7 . 6 . 5 . 1 2 Detach 39 | 1 5 . . . 5 8 . 1 6 . 4 1 5 . 1 2 Swap 20 | . 4 1 . . 5 5 2 . 2 . 1 . . . . . Drop 88 | 2 12 1 3 . 19 12 3 3 9 . 6 4 7 . 5 2 Fire 286 | 24 22 16 . . 63 89 5 23 14 . 7 . 13 . . 10 Melee . | . . . . . . . . . . . . . . . . . Ram 11 | . . . . . . . . . . . . . . . . 11 Kick . | . . . . . . . . . . . . . . . . . Crush . | . . . . . . . . . . . . . . . . . Escape Stasis . | . . . . . . . . . . . . . . . . . Rewire 57 | . . . . . . . . 57 . . . . . . . . Trap . | . . . . . . . . . . . . . . . . . Miscellaneous . | . . . . . . . . . . . . . . . . . Route ------- -11/Scrapyard -10/Materials (discovered 2 exits: [*Mat] / [*Min]) -10/Mines (discovered 3 exits: [*Mat x2] / *Exi) -10/Exiles (discovered 2 exits: [*Min x2]) -9/Mines -8/Materials -7/Factory (discovered 4 exits: *Sto x2 / Low x2) -7/Storage -7/Recycling -5/Factory -5/Waste -5/Factory -4/Factory -4/Upper Caves -4/Upper Caves -3/Research -3/Quarantine History --------- Turn | Location | Event 54 | -11/Scrapyard | Discovered new exit (range 15) 187 | -11/Scrapyard | Entered Materials 307 | -10/Materials | Build established: Mutant 680 | -10/Materials | Discovered new exit (range 10) 752 | -10/Materials | Discovered new exit (range 9) 764 | -10/Materials | Entered Mines 864 | -10/Mines | Discovered new exit (range 10) 958 | -10/Mines | Learned Materials security intel 1054 | -10/Mines | Assisted by bots powering up and referring to "LRC-V3" 1150 | -10/Mines | Discovered new exit (range 15) 1243 | -10/Mines | Deemed a non-threat by the Exiles lab entrance 1243 | -10/Mines | Discovered new exit (range 5) 1261 | -10/Mines | Entered Exiles 1261 | -10/Exiles | Accompanied by 2 allies 1284 | -10/Exiles | Discovered new exit (range 15) 1312 | -10/Exiles | Met 8R-AWN 1330 | -10/Exiles | Met EX-HEX 1391 | -10/Exiles | Met EX-DEC 1418 | -10/Exiles | Visited The Gauntlet 1648 | -10/Exiles | Discovered new exit (range 12) 1720 | -10/Exiles | Met EX-BIN 1794 | -10/Exiles | Aligned with FarCom system 1795 | -10/Exiles | Given EX-Vault access code 1821 | -10/Exiles | Opened EX-Vault 1838 | -10/Exiles | Found Prototype Device 1838 | -10/Exiles | Identified Supersonic Drone Bay 1842 | -10/Exiles | Found Prototype Device 1842 | -10/Exiles | Identified Trap Reconfigurator 1846 | -10/Exiles | Found Prototype Device 1846 | -10/Exiles | Identified Chronowheel 1846 | -10/Exiles | Activated Chronowheel 1846 | -10/Exiles | Spacetime reconverged on an earlier point 1888 | -10/Exiles | Warned to stay clear of 0b10 Research branches 1930 | -10/Exiles | Learned location of Zion (-7) 1997 | -10/Exiles | Entered Mines 1997 | -9/Mines | Accompanied by 2 allies 2108 | -9/Mines | Discovered new exit (range 9) 2133 | -9/Mines | Entered Materials 2133 | -8/Materials | Accompanied by 2 allies 2133 | -8/Materials | Evolved 4 slots: Propulsion x1, Utility x3 2768 | -8/Materials | Repaired Grenade Launcher 2807 | -8/Materials | Repaired Hvy. Particle Cannon 2841 | -8/Materials | Repaired Imp. Hover Unit 3018 | -8/Materials | Build established: Scout 3131 | -8/Materials | Destroyed 8 combat bots 3208 | -8/Materials | Discovered new exit (range 14) 3222 | -8/Materials | Entered Factory 3222 | -7/Factory | Evolved 2 slots: Power x1, Utility x1 3681 | -7/Factory | Build established: Mutant 4198 | -7/Factory | Central database locked down 4313 | -7/Factory | Lost 3 parts (1n1u1w) 4616 | -7/Factory | Identified exit to Storage 4616 | -7/Factory | Identified exit to Lower Caves 4616 | -7/Factory | Garrison activated, responded to threat 4674 | -7/Factory | Build established: Scavenger-Mutant 4814 | -7/Factory | Garrison activated, responded to threat 4891 | -7/Factory | Lost 4 parts (1p1u2w) 4949 | -7/Factory | Entered Storage 5131 | -7/Storage | Used back door to open Recycling access 5131 | -7/Storage | Discovered new exit (range 5) 5136 | -7/Storage | Entered Recycling 5174 | -7/Recycling | Spotter reported a threat 5194 | -7/Recycling | Spotter reported a threat 5199 | -7/Recycling | Spotter reported a threat 5199 | -7/Recycling | Spotter reported a threat 5206 | -7/Recycling | Spotter reported a threat 5239 | -7/Recycling | Spotter reported a threat 5247 | -7/Recycling | Spotter reported a threat 5266 | -7/Recycling | Spotter reported a threat 5311 | -7/Recycling | Discovered new exit (range 5) 5345 | -7/Recycling | Spotter reported a threat 5361 | -7/Recycling | Spotter reported a threat 5368 | -7/Recycling | Spotter reported a threat 5368 | -7/Recycling | Spotter reported a threat 5426 | -7/Recycling | Spotter reported a threat 5435 | -7/Recycling | Spotter reported a threat 5497 | -7/Recycling | Spotter reported a threat 5497 | -7/Recycling | Spotter reported a threat 5549 | -7/Recycling | Spotter reported a threat 5587 | -7/Recycling | Spotter reported a threat 5602 | -7/Recycling | Spotter reported a threat 5638 | -7/Recycling | Spotter reported a threat 5640 | -7/Recycling | Spotter reported a threat 5693 | -7/Recycling | Spotter reported a threat 5698 | -7/Recycling | Spotter reported a threat 5718 | -7/Recycling | Spotter reported a threat 5774 | -7/Recycling | Spotter reported a threat 5789 | -7/Recycling | Spotter reported a threat 5805 | -7/Recycling | Spotter reported a threat 5824 | -7/Recycling | Spotter reported a threat 5827 | -7/Recycling | Spotter reported a threat 5847 | -7/Recycling | Spotter reported a threat 5873 | -7/Recycling | Spotter reported a threat 5873 | -7/Recycling | Spotter reported a threat 5877 | -7/Recycling | Spotter reported a threat 5919 | -7/Recycling | Spotter reported a threat 5919 | -7/Recycling | Spotter reported a threat 5920 | -7/Recycling | Spotter reported a threat 5965 | -7/Recycling | Entered Factory 5965 | -5/Factory | Accompanied by 10 allies 5965 | -5/Factory | Evolved 4 slots: Power x1, Propulsion x1, Utility x1, Weapon x1 6068 | -5/Factory | Build established: Commander-Mutant 6925 | -5/Factory | Lost 5 parts (1n2u2w) 7068 | -5/Factory | Sucked down chute 7068 | -5/Factory | Entered Waste 7069 | -5/Waste | Met a frightened Derelict 7079 | -5/Waste | Spotted C-40 Crusher 7080 | -5/Waste | 1 allies followed down the chute 7083 | -5/Waste | EMP discharged 7085 | -5/Waste | Spotted C-40 Crusher 7086 | -5/Waste | Spotted C-40 Crusher 7086 | -5/Waste | Spotted C-40 Crusher 7092 | -5/Waste | Spotted C-40 Crusher 7109 | -5/Waste | Discovered new exit (range 13) 7115 | -5/Waste | Entered Factory 7182 | -5/Factory | Build established: Mutant 7499 | -5/Factory | Build established: Hacker-Mutant 7733 | -5/Factory | Discovered new exit (range 6) 7735 | -5/Factory | Entered another Factory area 7735 | -4/Factory | Evolved 2 slots: Propulsion x1, Utility x1 7829 | -4/Factory | Discovered new exit (range 11) 7889 | -4/Factory | Entered Upper Caves 7895 | -4/Upper Caves | Attracted the attention of an 0b10 checkpoint 7942 | -4/Upper Caves | Lost 5 parts (2n1u2w) 7955 | -4/Upper Caves | Attracted the attention of an 0b10 base 7956 | -4/Upper Caves | Learned Research garrison access intel 7956 | -4/Upper Caves | Learned Factory stockpile data 7956 | -4/Upper Caves | Learned Research emergency access door positions 8198 | -4/Upper Caves | Build established: Mutant 8646 | -4/Upper Caves | Identified exit to Upper Caves 8705 | -4/Upper Caves | Learned location of 1 exit from Research 8783 | -4/Upper Caves | Entered another Upper Caves area 8792 | -4/Upper Caves | Discovered new exit (range 10) 8803 | -4/Upper Caves | Entered Research 8803 | -3/Research | Evolved 2 slots: Power x1, Utility x1 8804 | -3/Research | Identified exit to Quarantine 8806 | -3/Research | Loaded intel: 4 garrison access locations 8958 | -3/Research | Fabricated Nova Cannon (x1) 9426 | -3/Research | Entered Quarantine 9427 | -3/Quarantine | Maximum security lockdown engaged 9488 | -3/Quarantine | Found Alien Artifact 9488 | -3/Quarantine | Identified Transdimensional Reconstructor 9488 | -3/Quarantine | Warped through subspace 9509 | -3/Quarantine | Spotted Alpha 7 9554 | -3/Quarantine | Met incapacitated Sigix Warrior 9554 | -3/Quarantine | Lockdown squad dispatched 9615 | -3/Quarantine | Core integrity fell below 50% 9618 | -3/Quarantine | Core integrity fell below 20% 9631 | -3/Quarantine | Destroyed by G-67 Veteran with Plasma Rifle Last Messages --------------- 09616_ C-30 ARC bursts open, deploying its payload. 09616_ G-73 Enforcer unfolds itself. 09616_ B-74 Champion unfolds itself. 09616_ G-67 Veteran unfolds itself. 09616_ M-36 Artificer unfolds itself. 09617_ Slammed into M-36 Artificer. 09621_ System corrupted: Heat flow error (+118). 09622_ Cryopreservation Unit disabled. 09623_ Slug penetrates Scanalyzer. 09623_ Scanalyzer disabled. 09623_ Slug penetrates Cryopreservation Unit. 09624_ Acquired Prototype Device. 09624_ Identified Exp. Thermal Generator. 09624_ Exp. Thermal Generator blown off. 09624_ E-15 Imp destroyed. 09627_ ALERT: Assault forces dispatched. 09627_ Slammed into M-36 Artificer. 09627_ P-80 Master resets P-80 Master, system corruption cleaned. 09629_ Slammed into G-67 Veteran. [Achievement: 10k Club] Map ----- +----------------------------------------------------+ | ????????????????????????# #?# | | ?????????????????######## #?# | | ?????????????????# ### | | ?????????????????# + | | ?????????????????# ### | | ?????????????????# ###### #?# | | ?????????????????# #????# #?# | | ?????????????????# #????# #?#### | | ????????????????## ######+###### | | ????????????????# ! # | | ????????????????# # """ """ | | ????????????????# + """"""""" | | ????????????????# # | | ??????????##+##?# # | | ??????????# #### ############# | | ??????????# | | ??????????# | | ?##########= | | ?# # """ | | ?#"""g"""l# """ #####" ###### | | ?#""" """ # """ #?????T#????? | | ?#"S i ""g#b "%" #??????#????? | | ?#""" mggggb ""%" #???????????? | | ?# "mg"""b#gl%%" #???????????? | | ?# !%p"""g#g7%########???????????? | | ?# lh"""@#g %#??????????????????? | | ?#= lpgg#"%"#??????????????????? | | ?##########i" ##?????????????????? | | ??????????# T#?????????????????? | | ???????####" ####???????????????? | | ???????#""T T""#???????????????? | | ???????#"" ""#???????????????? | | ???????#""" """#???????????????? | | ???????#"" """ ""#???????????????? | | ???????#"" "&" ""#???????????????? | | ???????#"" """ ""#???????????????? | | ???????#""" """#???????????????? | | ???????#"""""""""#???????????????? | | ????????"""""""""????????????????? | | ???????????###?##????????????????? | | ?????????????????????????????????? | | ?????????????????????????????????? | | ?????????????????????????????????? | | ?????????????????????????????????? | | | | | | | | | | | | | +----------------------------------------------------+ Best States ------------- Heat Dissipation 81 Energy Generation 34 Energy Capacity 525 Matter Stores 300 Matter Capacity 300 Sight Range 16 Robot Scan Range 13 Terrain Scan Range 16 Terrain Scan Density 10 Additional Mass Support 6 Heat Shielding 200 Armor Coverage 225 Point Defense Rating 160 Evasion (%) 60 Recoil Reduction 2 Energy Filtering 30 Offensive Hacking 24 Item Schematics ----------------- None Robot Schematics ------------------ None Fabricated ------------ Nova Cannon | x1 | -3/Research | Preloaded Alien Tech Used ----------------- Transdimensional Reconstructor Achievements -------------- 10k Club A New Friend Alien Tech Backstab Dangerous Findings Everything Is Under Control False Reunion Hunted Just What I Needed Leap Before You Look Librarian One Hack Too Far Remodeling Subspace Traveler The More The Merrier Troublemaker Challenges ------------ None Game ------ Seed HardenedTargetGun Manual? 0 Play Time 05:44:14 Cumulative 22.6 hours Start 2021.01.03 @ 22:21:47 End 2021.01.05 @ 20:53:05 Sessions 5 Manual Loads 0 Difficulty Rogue Special Mode None Game No. 5 Rogue 5 Adventurer 0 Explorer 0 Win Type - Total 0 Types 0/0/0/0/0/0/0/0/0 Lore% 19 Gallery% 13 Achievement% 15 Wizard Run 0 Options --------- ASCII 1 Keyboard 1 Movement Numpad Keybinds 0 Fullscreen 1 Font 18/TerminusBold Map View 76x50 Tactical HUD 1 Map Filters NONE Filters NONE Steam 1 RUN: a01c45ab-be5e-4d16-940e-85abb01efb6f